bitfinex/quotes_ETHUSD_20241129
["timestamp","ask_amount","ask_price","bid_price","bid_amount"]
[1732848620565,0.95238121,3593.1,3593.0,5.36886926]
[1732848620719,0.95238121,3593.1,3593.0,6.00206926]
[1732848620919,0.95238121,3593.1,3593.0,6.94013336]
[1732848621122,0.6917018,3593.1,3593.0,6.94013336]
[1732848621521,0.6917018,3593.1,3593.0,7.49013336]
[1732848622168,1.8e-06,3593.1,3593.0,7.49013336]
[1732848622376,0.41695906,3593.9,3593.8,2.78256]
[1732848622657,0.67749736,3593.9,3593.8,2.78256]
[1732848622873,0.67749736,3593.9,3593.8,3.402408]
[1732848624407,0.2605383,3593.9,3593.8,3.402408]
[1732848625232,0.67749736,3593.9,3593.8,3.402408]
[1732848625438,0.67749736,3593.9,3593.8,2.78256]
[1732848625439,0.2605383,3593.9,3593.8,2.78256]
[1732848625654,0.67749736,3593.9,3593.8,2.78256]
[1732848625955,0.60798318,3594.4,3593.9,2.78242]
[1732848626135,0.67690971,3594.3,3593.9,2.78242]
[1732848626332,0.67690971,3594.2,3593.9,2.78242]
[1732848626548,0.67690971,3594.1,3593.9,2.78242]
[1732848626729,0.67690971,3594.0,3593.9,2.78242]
[1732848626942,1.50030971,3594.0,3593.9,2.78242]
[1732848627887,4.28271971,3594.0,3593.3,2.78288]
[1732848628175,0.7526,3593.8,3593.2,2.78302]
[1732848628387,0.69099233,3593.7,3593.2,2.78302]
[1732848628541,0.67686473,3593.6,3593.2,2.78302]
[1732848628740,0.69099233,3593.5,3593.2,2.78302]
[1732848628962,0.67686473,3593.4,3593.2,2.78302]
[1732848629163,0.0141276,3593.7,3593.2,2.78302]
[1732848629382,0.26033,3593.3,3593.2,2.78302]
[1732848629580,0.416528,3593.5,3593.0,2.82602071]
[1732848629787,0.67685272,3593.4,3593.3,2.78295]
[1732848629957,0.26032472,3593.4,3593.3,2.78295]
[1732848630482,0.67685272,3593.4,3593.3,2.78295]
[1732848630646,0.26032472,3593.4,3593.3,2.78295]
[1732848630842,0.26032472,3593.4,3593.1,2.7831]
[1732848631040,0.67685272,3593.3,3593.2,2.783]
[1732848631283,0.26032472,3593.3,3593.2,2.783]
[1732848632766,0.67685272,3593.3,3593.2,2.783]
[1732848632970,0.26032472,3593.3,3593.2,2.783]
[1732848633489,0.26032472,3593.3,3593.0,0.04285071]
[1732848633780,3.56221,3593.1,3593.0,0.04285071]
[1732848633979,7.67850935,3593.1,3593.0,0.04285071]
[1732848634187,8.09826508,3593.1,3593.0,0.04285071]
[1732848634625,8.27237283,3593.1,3593.0,0.04285071]
[1732848636223,8.2723445,3593.1,3593.0,0.04285071]
[1732848637298,7.83849253,3593.1,3593.0,0.04285071]
[1732848637800,12.2723445,3593.1,3593.0,0.04285071]
[1732848638251,9.05538253,3593.1,3593.0,0.04285071]
[1732848638432,11.83849253,3593.1,3593.0,0.04285071]
[1732848638635,1.6300635,3593.1,3593.0,0.04285071]
[1732848638933,1.03941118,3593.1,3593.0,0.04285071]
[1732848639092,1.45590907,3593.1,3593.0,0.04285071]
[1732848639710,1.03941118,3593.1,3593.0,0.04285071]
[1732848640412,1.45590907,3593.1,3593.0,0.04285071]
[1732848640606,1.03941118,3593.1,3593.0,0.04285071]
[1732848640838,1.45590907,3593.1,3593.0,0.04285071]
[1732848641006,2.04158509,3593.1,3593.0,0.04285071]
[1732848641211,2.45808298,3593.1,3593.0,0.04285071]
[1732848641411,2.04158509,3593.1,3593.0,0.04285071]
[1732848641648,2.45808298,3593.1,3593.0,0.04285071]
[1732848641835,2.04158509,3593.1,3593.0,0.04285071]
[1732848642054,2.45808298,3593.1,3593.0,0.04285071]
[1732848642374,1.45590907,3593.1,3593.0,0.04285071]
[1732848642669,1.47003667,3593.1,3593.0,0.04285071]
[1732848642882,1.45590907,3593.1,3593.0,0.04285071]
[1732848643082,7.25314667,3593.1,3593.0,0.04285071]
[1732848643374,10.21570959,3593.1,3593.0,0.04285071]
[1732848643535,0.8272,3592.5,3592.1,0.05042881]
[1732848643731,0.26031118,3592.4,3592.1,0.05042881]
[1732848643934,0.26031118,3592.3,3592.1,0.05042881]
[1732848644133,1.24369789,3592.5,3592.1,0.05042881]
[1732848644134,0.26031118,3592.2,3592.1,0.05042881]
[1732848649377,0.0141276,3592.4,3592.1,0.05042881]
[1732848649622,0.46575578,3592.3,3592.1,0.05042881]
[1732848650124,0.0141276,3592.2,3592.1,0.05042881]
[1732848650721,0.27400706,3592.2,3592.1,0.05042881]
[1732848651217,0.25987946,3592.2,3592.1,0.05042881]
[1732848652527,0.25987946,3592.4,3592.1,0.05042881]
[1732848652819,0.25987946,3592.3,3592.1,0.05042881]
[1732848652978,0.74605221,3592.4,3592.1,0.05042881]
[1732848652979,0.25987946,3592.2,3592.1,0.05042881]
[1732848653182,0.25987946,3592.3,3592.1,0.05042881]
[1732848653401,0.27401437,3592.2,3592.1,0.05042881]
[1732848653648,1.02771524,3592.2,3592.1,0.05042881]
[1732848653797,7.31215483,3592.2,3592.1,0.05042881]
[1732848654439,7.90217519,3592.2,3592.1,0.05042881]
[1732848655308,8.33534004,3592.2,3592.1,0.05042881]
[1732848655824,12.33534004,3592.2,3592.1,0.05042881]
[1732848656131,11.90217519,3592.2,3592.1,0.05042881]
[1732848656499,12.33534004,3592.2,3592.1,0.05042881]
[1732848657077,12.33568719,3592.2,3592.1,0.05042881]
[1732848658227,11.90239613,3592.2,3592.1,0.05042881]
[1732848658819,12.33568719,3592.2,3592.1,0.05042881]
[1732848659338,11.90239613,3592.2,3592.1,0.05042881]
[1732848659555,12.33576716,3592.2,3592.1,0.05042881]
[1732848660527,4.85037017,3592.2,3592.1,0.05042881]
[1732848660738,0.26006449,3592.2,3592.1,2.83430881]
[1732848660940,0.26006449,3592.2,3592.1,0.05042881]
[1732848661124,0.27419209,3592.2,3592.1,0.05042881]
[1732848661324,0.69029528,3592.2,3592.1,0.05042881]
[1732848661540,1.31605681,3592.2,3592.1,0.05042881]
[1732848661747,4.87985681,3592.2,3592.1,0.05042881]
[1732848662036,2.0820428,3592.2,3592.1,0.05042881]
[1732848662240,0.67628127,3592.2,3592.1,2.83430881]
[1732848662448,0.26010818,3592.2,3592.1,2.83430881]
[1732848664166,0.26010818,3592.5,3592.4,2.78365]
[1732848664470,0.26010818,3592.8,3592.7,2.78342]
[1732848666323,0.26013003,3592.8,3592.7,2.78342]
[1732848667141,2.78289,3593.4,3592.7,2.78342]
[1732848667359,0.39926677,3593.3,3592.7,2.78342]
[1732848667862,0.39926677,3593.3,3592.8,2.78333]
[1732848668070,1.07560573,3593.3,3592.9,2.78325]
[1732848668263,1.07560573,3593.3,3592.8,2.78329]
[1732848668943,1.07560573,3593.3,3592.7,2.7834]
[1732848669145,0.8172,3593.1,3592.5,2.78355]
[1732848669356,0.8172,3593.1,3592.7,2.7834]
[1732848669675,0.7852,3593.4,3593.1,2.78309]
[1732848669857,0.7852,3593.4,3592.8,3.41653]
[1732848669858,3.56785,3593.7,3592.9,2.78326]
[1732848670063,3.3709126,3593.6,3592.2,0.6332]
[1732848670239,3.3709126,3593.6,3593.0,2.78318]
[1732848670435,3.356785,3593.6,3593.0,2.78318]
[1732848671181,0.67640162,3593.5,3593.1,2.78309]
[1732848671335,0.67640162,3593.5,3593.0,2.78318]
[1732848671530,0.67640162,3593.4,3593.2,2.78301]
[1732848671772,0.67640162,3593.3,3593.2,2.78301]
[1732848672103,0.26015447,3593.3,3593.2,2.78301]
[1732848672276,0.67640162,3593.3,3593.2,2.78301]
[1732848672572,0.26015447,3593.3,3593.2,2.78301]
[1732848672774,0.67640162,3594.4,3594.2,2.78218]
[1732848672987,0.67640162,3594.4,3593.3,0.6332]
[1732848672988,4.67625558,3594.3,3593.8,2.78249]
[1732848673272,0.26000843,3594.2,3593.6,2.78265]
[1732848673518,0.0141276,3594.4,3593.9,2.78246]
[1732848673636,2.78195,3594.6,3594.0,2.78241]
[1732848673637,0.67537899,3594.3,3594.0,2.78241]
[1732848673841,0.42148611,3594.5,3594.1,2.78233]
[1732848673842,0.25975807,3594.2,3594.1,2.78233]
[1732848674535,0.25975807,3594.5,3594.4,2.7821]
[1732848675348,0.25975807,3594.8,3594.5,2.78202]
[1732848675545,0.25975807,3594.7,3594.6,2.78195]
[1732848675853,0.27388567,3594.9,3594.5,2.78202]
[1732848676060,0.25975807,3594.8,3594.5,2.78202]
[1732848676245,0.25975807,3594.9,3594.7,2.78187]
[1732848676441,0.8315,3595.0,3594.7,2.78187]
[1732848677195,0.67537098,3595.3,3595.1,3.41476]
[1732848677491,0.25975807,3595.3,3595.2,2.78148]
[1732848677687,0.43293012,3595.8,3595.7,2.78109]
[1732848677887,0.1539605,3595.9,3595.7,2.78109]
[1732848678077,0.1539605,3595.9,3595.8,2.78102]
[1732848678462,0.1539605,3595.9,3595.8,3.970431]
[1732848683595,0.1539605,3595.9,3595.7,2.78109]
[1732848683752,0.1539605,3595.9,3595.4,2.78129]
[1732848684092,0.1539605,3595.9,3595.7,2.78104]
[1732848684449,0.1539605,3595.9,3595.8,2.78102]
[1732848684646,0.1539605,3595.9,3595.6,2.7811]
[1732848684889,0.1539605,3595.9,3595.8,2.78102]
[1732848685457,0.1539605,3595.9,3595.6,2.78115]
[1732848685858,0.1539605,3595.9,3595.8,2.78102]
[1732848686751,0.1539605,3595.9,3595.6,2.78115]
[1732848687294,0.1539605,3595.9,3595.8,2.78102]
[1732848687497,0.1539605,3595.9,3595.6,2.78115]
[1732848687657,0.1539605,3595.9,3595.6,2.78111]
[1732848688096,0.1539605,3595.9,3595.4,2.78132]
[1732848688097,0.1539605,3595.9,3595.4,2.78126]
[1732848688306,0.829,3595.8,3595.2,2.78148]
[1732848688600,0.829,3595.8,3595.3,2.7814]
[1732848688773,0.829,3595.8,3595.4,2.78125]
[1732848688978,0.8431276,3595.8,3595.2,2.78148]
[1732848689203,0.37779981,3595.7,3595.2,2.78148]
[1732848689494,0.37779981,3595.7,3595.1,0.56364688]
[1732848689652,0.37779981,3595.7,3595.2,2.78147]
[1732848689849,0.829,3595.8,3595.1,0.59146168]
[1732848690094,0.1539605,3595.9,3595.8,2.78102]
[1732848692968,0.1539605,3595.9,3595.8,0.05797525]
[1732848693167,0.9092605,3595.9,3595.8,0.05797525]
[1732848693770,6.6902005,3595.9,3595.8,0.05797525]
[1732848694074,8.19550234,3595.9,3595.8,0.05797525]
[1732848695266,8.60930021,3595.9,3595.8,0.05797525]
[1732848695471,8.19550234,3595.9,3595.8,0.05797525]
[1732848695970,8.60928542,3595.9,3595.8,0.05797525]
[1732848696498,5.82834542,3595.9,3595.8,0.05797525]
[1732848696675,0.41216229,3595.9,3595.8,0.05797525]
[1732848697012,0.1539605,3595.9,3595.8,2.83899525]
[1732848697616,0.1539605,3595.9,3595.8,0.05797525]
[1732848697907,0.1539605,3595.9,3595.8,2.83899525]
[1732848698272,0.1539605,3595.9,3595.8,0.05797525]
[1732848698674,0.1539605,3595.9,3595.8,2.83899525]
[1732848698887,0.1539605,3595.9,3595.8,0.05797525]
[1732848700717,0.1539605,3595.9,3595.8,2.83899525]
[1732848700901,0.1539605,3595.9,3595.8,0.05797525]
[1732848701797,0.1539605,3595.9,3595.8,2.83899525]
[1732848702187,0.1539605,3595.9,3595.8,0.05797525]
[1732848702702,0.1539605,3595.9,3595.8,2.83899525]
[1732848702897,0.1539605,3595.9,3595.8,3.47219525]
[1732848703534,0.1539605,3595.9,3595.8,4.12533906]
[1732848703696,0.1539605,3595.9,3595.8,4.09752977]
[1732848704679,0.1539605,3595.9,3595.8,3.47219525]
[1732848704979,0.1539605,3595.9,3595.8,2.83899525]
[1732848705186,0.41216229,3595.9,3595.8,2.83899525]
[1732848707317,0.41216229,3595.9,3595.8,0.05797525]
[1732848707519,0.82642793,3595.9,3595.8,0.05797525]
[1732848709580,0.82642793,3595.9,3595.8,2.83899525]
[1732848710880,0.82642793,3595.9,3595.8,0.05797525]
[1732848711081,0.1539605,3595.9,3595.8,2.83899525]
[1732848711281,0.83086374,3595.9,3595.8,0.05797525]
[1732848712278,2.04471635,3595.9,3595.8,0.05797525]
[1732848712586,5.25956869,3595.9,3595.8,0.05797525]
[1732848712924,4.82565635,3595.9,3595.8,0.05797525]
[1732848713236,0.7998,3595.1,3594.4,0.6332]
[1732848713396,0.7998,3595.1,3594.3,2.78217]
[1732848713397,3.45854324,3595.0,3594.3,2.78217]
[1732848713603,0.7998,3595.1,3594.3,2.78217]
[1732848713604,0.67690324,3594.9,3594.6,2.78194]
[1732848713821,0.67690324,3594.8,3594.6,2.78194]
[1732848713998,0.67704662,3594.7,3594.6,2.78194]
[1732848714197,0.2603474,3594.7,3594.6,2.78194]
[1732848714432,0.2603474,3594.7,3594.6,3.338344]
[1732848714634,0.41651386,3595.3,3594.6,3.338344]
[1732848714793,0.41651386,3595.2,3594.9,2.78171]
[1732848714997,0.67683603,3595.1,3594.7,2.78187]
[1732848715303,1.20066861,3595.5,3594.9,2.78171]
[1732848715304,0.26023342,3595.0,3594.9,2.78171]
[1732848717339,0.26023342,3595.0,3594.7,2.78184]
[1732848717509,0.26023342,3594.9,3594.7,2.78184]
[1732848717842,0.41651386,3595.3,3594.7,2.78184]
[1732848718000,0.41629812,3595.3,3594.7,2.78184]
[1732848718200,0.26018632,3595.2,3594.3,2.78214]
[1732848718441,2.7818,3594.8,3594.0,2.78241]
[1732848718734,0.7924,3594.6,3593.8,3.41576]
[1732848718946,0.26018632,3594.5,3594.1,2.78227]
[1732848719401,0.26018632,3594.4,3594.1,2.78227]
[1732848719596,0.26018632,3594.5,3594.1,2.78227]
[1732848719899,0.26018632,3594.5,3594.3,2.78218]
[1732848720112,0.26018632,3594.5,3594.1,2.78227]
[1732848720305,0.26018632,3594.5,3594.3,2.78218]
[1732848720503,0.26018632,3594.8,3594.0,0.02782075]
[1732848720834,0.26003301,3594.7,3594.5,2.782]
[1732848721045,0.8112,3595.2,3594.1,2.54283855]
[1732848721046,0.26003728,3595.1,3594.6,2.78187]
[1732848721224,0.26003728,3595.0,3594.6,2.78187]
[1732848721431,3.59269,3595.2,3594.5,2.78202]
[1732848721599,0.26002235,3594.9,3594.5,2.78202]
[1732848721796,0.25997597,3594.8,3594.3,2.78212]
[1732848721996,0.25997597,3594.8,3594.4,2.7821]
[1732848722234,0.25997597,3594.7,3594.4,2.7821]
[1732848722437,0.8179,3594.6,3594.0,2.78237]
[1732848722613,0.0141276,3594.5,3593.8,2.78254]
[1732848722822,0.25997597,3594.4,3593.8,2.78254]
[1732848723130,0.25997597,3594.4,3593.9,2.78245]
[1732848723331,0.25997597,3594.4,3593.6,2.78267]
[1732848723515,0.7894,3594.2,3593.2,2.78303]
[1732848723727,1.04937597,3594.2,3593.5,2.78279]
[1732848724046,3.83166597,3594.2,3593.3,2.78295]
[1732848724201,0.27410357,3594.1,3593.4,2.78285]
[1732848724601,0.27410357,3594.1,3593.2,2.78303]
[1732848724800,0.27410357,3594.1,3593.0,0.6332]
[1732848724801,1.04937597,3594.2,3593.6,2.78264]
[1732848725041,0.73601653,3594.1,3593.3,2.78291]
[1732848725239,2.78254,3593.9,3593.1,2.78309]
[1732848725401,0.25997597,3593.8,3593.2,2.78297]
[1732848725600,3.81118474,3594.0,3593.2,2.78297]
[1732848725838,3.05616234,3593.9,3593.0,2.78312]
[1732848726038,0.99250487,3593.8,3593.1,2.78308]
[1732848726525,0.8245,3593.6,3593.0,2.78312]
[1732848727198,0.8245,3593.6,3592.8,2.78331]
[1732848727440,2.78289,3593.4,3592.4,2.78364]
[1732848727599,0.7947276,3593.3,3592.3,0.6332]
[1732848727806,0.7806,3593.3,3593.1,2.78309]
[1732848728108,0.8186,3593.6,3593.1,2.78304]
[1732848728623,0.8186,3593.6,3593.0,2.78317]
[1732848729757,0.8186,3593.6,3592.9,2.7832]
[1732848730051,0.43342001,3593.5,3592.9,2.7832]
[1732848730344,0.43342001,3593.5,3593.0,2.78316]
[1732848730510,0.8186,3593.6,3593.0,2.78313]
[1732848731355,0.8186,3593.6,3592.8,2.78332]
[1732848731356,2.7969476,3593.5,3592.8,2.78327]
[1732848731555,0.8186,3593.6,3592.7,0.02783098]
[1732848731743,0.8186,3593.6,3593.2,2.78302]
[1732848731920,1.47871,3593.6,3593.0,2.78311]
[1732848732329,0.7951,3594.1,3593.5,2.7828]
[1732848732654,1.053834,3594.1,3593.5,2.7828]
[1732848732827,3.0,3594.0,3593.3,2.78292]
[1732848733219,3.0,3593.8,3593.0,0.6332]
[1732848733419,6.5775,3594.1,3593.0,0.6332]
[1732848733627,3.0,3593.9,3593.0,2.78312]
[1732848733815,3.0,3593.9,3592.4,0.32264674]
[1732848733816,0.7846,3593.7,3592.8,2.78334]
[1732848734035,3.7846,3593.7,3593.0,2.78315]
[1732848734255,3.7846,3593.7,3592.8,2.78334]
[1732848734574,0.0141276,3593.6,3593.0,2.78313]
[1732848734726,0.7846,3593.5,3593.0,2.78313]
[1732848734926,0.0141276,3593.4,3593.0,2.78313]
[1732848735270,0.7846,3593.5,3593.1,2.78309]
[1732848735757,0.0141276,3593.4,3592.9,2.78323]
[1732848736058,0.7846,3593.5,3593.0,2.78318]
[1732848736622,0.0141276,3593.4,3593.0,2.78318]
[1732848736818,0.0141276,3593.4,3592.8,2.78331]
[1732848737044,0.69437944,3593.4,3592.8,2.78331]
[1732848737261,0.69437944,3593.4,3592.8,2.78327]
[1732848737422,0.69437944,3593.4,3592.6,2.78349]
[1732848737632,0.69437944,3593.4,3592.9,2.78324]
[1732848738162,0.69437944,3593.4,3593.1,2.78311]
[1732848738338,0.7846,3593.5,3593.1,2.78311]
[1732848738665,0.7846,3593.5,3593.2,2.78303]
[1732848739570,0.7906,3594.0,3593.7,2.78258]
[1732848739865,0.7906,3594.0,3593.8,2.78255]
[1732848740436,0.7906,3594.0,3593.6,2.78265]
[1732848741375,0.7906,3594.0,3593.7,2.78264]
[1732848741525,0.7906,3594.0,3593.9,2.78249]
[1732848742165,0.25899779,3594.0,3593.9,2.78249]
[1732848742461,0.25899779,3594.2,3593.9,2.78249]
[1732848742758,0.8223,3594.3,3593.9,2.78249]
[1732848742759,0.25899779,3594.1,3593.9,2.78249]
[1732848742963,0.25899779,3594.0,3593.9,2.78249]
[1732848743263,0.25899779,3594.2,3594.1,2.78233]
[1732848743675,0.25899779,3594.5,3594.1,2.78233]
[1732848743879,0.25899779,3594.4,3594.1,2.78233]
[1732848744035,0.25899779,3594.3,3594.2,2.78223]
[1732848744971,0.25899779,3594.3,3593.7,2.78257]
[1732848744972,0.8096,3594.2,3593.7,2.78257]
[1732848745128,0.25899779,3594.1,3593.1,0.6332]
[1732848745336,0.25899779,3594.0,3593.7,2.78259]
[1732848745532,0.25899779,3593.9,3593.8,2.78255]
[1732848745766,0.25899779,3594.1,3593.8,2.78255]
[1732848745976,0.25899779,3594.0,3593.9,5.56496]
[1732848746145,0.25899779,3594.1,3593.9,2.78248]
[1732848746348,0.8096,3594.2,3593.9,2.78248]
[1732848746548,0.25979318,3594.1,3594.0,2.78241]
[1732848747046,0.25979318,3594.1,3593.2,2.78302]
[1732848747393,0.8096,3593.9,3593.4,2.78286]
[1732848747536,0.25979318,3593.8,3593.4,2.78286]
[1732848747870,0.25979318,3593.7,3593.4,2.78286]
[1732848748047,0.25979318,3593.6,3593.4,2.78286]
[1732848748367,0.25979318,3593.5,3593.4,2.78286]
[1732848751271,0.26022936,3593.5,3593.4,2.78286]
[1732848751671,0.8096,3593.9,3593.2,2.78302]
[1732848751848,0.41639231,3593.7,3593.4,2.78281]
[1732848752048,0.67680946,3593.6,3593.4,2.78281]
[1732848752281,0.67680946,3593.5,3593.4,2.78281]
[1732848752956,0.38096,3593.8,3593.3,2.78295]
[1732848753158,0.67725268,3593.7,3593.3,2.78295]
[1732848753381,0.67725268,3593.6,3593.3,2.78295]
[1732848753543,0.98370182,3593.9,3593.5,2.78276]
[1732848753746,1.11918743,3593.8,3593.5,2.78276]
[1732848754081,0.67740361,3593.7,3593.5,2.78276]
[1732848754255,0.67740361,3593.6,3593.5,2.78276]
[1732848755573,0.67740361,3593.6,3593.3,2.78295]
[1732848755913,0.67740361,3593.5,3593.3,2.78295]
[1732848756209,0.67740361,3593.4,3593.3,2.78295]
[1732848756711,0.8109,3593.3,3592.7,2.78341]
[1732848756866,0.82623397,3593.2,3592.8,2.78332]
[1732848757069,0.67740361,3593.1,3592.8,2.78332]
[1732848757269,0.67740361,3593.0,3592.8,2.78332]
[1732848757505,0.67740361,3592.9,3592.8,2.78332]
[1732848757708,0.26053985,3592.9,3592.8,2.78332]
[1732848758091,0.67740361,3592.9,3592.8,2.78332]
[1732848758295,0.26057528,3592.9,3592.8,2.78332]
[1732848758713,0.8252,3592.8,3592.5,2.78357]
[1732848758916,0.67749573,3592.7,3592.5,2.78357]
[1732848759098,0.97546957,3592.8,3592.6,2.78349]
[1732848759303,0.8252,3592.8,3592.7,2.78342]
[1732848759595,1.50256415,3592.8,3592.5,2.78353]
[1732848759806,0.26052467,3592.7,3592.5,2.78353]
[1732848760004,0.26052467,3592.6,3592.5,2.78353]
[1732848763324,0.799,3593.1,3592.9,2.78326]
[1732848763615,0.67716599,3593.0,3592.5,3.41677]
[1732848763930,0.67716599,3592.9,3592.5,2.78357]
[1732848764092,0.26038715,3592.8,3592.7,2.78337]
[1732848764808,0.26038715,3592.8,3592.7,3.41657]
[1732848765011,0.41677884,3593.2,3592.7,1.28383001]
[1732848765236,0.41677884,3593.2,3593.1,2.78311]
[1732848765439,0.41653879,3593.4,3593.3,2.78295]
[1732848765804,0.67688815,3593.4,3593.3,2.78295]
[1732848766210,0.76,3593.9,3593.3,2.78295]
[1732848766433,4.33114427,3593.8,3593.3,2.78295]
[1732848766643,0.67690827,3593.7,3593.3,2.78295]
[1732848766803,0.67690827,3593.6,3593.3,2.78295]
[1732848766999,0.67690827,3593.5,3593.3,2.78295]
[1732848767200,0.26034933,3593.4,3593.3,2.78295]
[1732848768901,1.04074933,3593.4,3593.3,2.78295]
[1732848769505,1.45730827,3593.4,3593.1,2.78311]
[1732848769705,0.26034933,3593.3,3593.1,2.78311]
[1732848769947,0.26034933,3593.2,3593.1,2.78311]
[1732848770649,0.26034933,3593.2,3592.9,2.78323]
[1732848770804,0.26034933,3593.1,3592.9,2.78323]
[1732848771009,0.26037984,3593.0,3592.5,5.32640855]
[1732848771208,0.41655894,3593.3,3593.2,2.78303]
[1732848771507,0.2603667,3593.3,3593.2,2.78303]
[1732848772024,0.67692564,3593.3,3593.1,2.78308]
[1732848772219,0.2603686,3593.2,3593.1,2.78308]
[1732848773009,0.2603686,3593.2,3592.9,2.78322]
[1732848773209,0.2603686,3593.1,3592.7,2.78341]
[1732848773409,0.2603686,3593.0,3592.7,2.78341]
[1732848773630,0.2604031,3592.9,3592.7,2.78341]
[1732848773835,0.26042046,3592.8,3592.5,2.78357]
[1732848774006,0.7952,3593.1,3592.1,2.59326736]
[1732848774007,0.26042046,3592.7,3592.1,0.05042881]
[1732848774203,0.41658976,3592.9,3592.7,2.7834]
[1732848774430,0.7952,3593.1,3592.7,2.7834]
[1732848774431,0.2604332,3592.8,3592.7,2.7834]
[1732848775306,0.2604332,3592.8,3592.5,2.78357]
[1732848775545,0.7952,3593.1,3592.3,2.78369]
[1732848775546,0.2604332,3592.7,3592.3,2.78369]
[1732848775733,0.7952,3593.1,3592.4,2.78364]
[1732848775734,0.2604332,3592.6,3592.4,2.78364]
[1732848776039,0.41658976,3592.9,3592.4,2.78364]
[1732848776245,0.26048556,3592.8,3592.4,2.78364]
[1732848776438,0.26048556,3592.7,3592.5,2.78357]
[1732848776647,0.26048556,3592.6,3592.5,2.78357]
[1732848779444,0.2605746,3592.6,3592.5,2.78357]
[1732848779750,0.26057717,3592.6,3592.5,2.78357]
[1732848781966,0.26060577,3592.6,3592.5,2.78357]
[1732848783021,0.26060577,3592.6,3592.5,2.83634681]
[1732848786267,0.26060577,3592.6,3592.5,0.05277681]
[1732848786560,0.67784067,3592.6,3592.5,0.05277681]
[1732848787449,0.26060577,3592.6,3592.5,0.05277681]
[1732848788460,0.67784067,3592.6,3592.5,0.05277681]
[1732848788662,0.67796381,3592.6,3592.5,0.05277681]
[1732848789335,0.26075531,3592.6,3592.5,2.83634681]
[1732848790127,0.26075531,3592.6,3592.5,0.05277681]
[1732848790466,1.4305373,3592.6,3592.5,0.05277681]
[1732848790639,1.85192103,3592.6,3592.5,0.05277681]
[1732848790962,4.63541103,3592.6,3592.5,0.05277681]
[1732848791182,4.64953863,3592.6,3592.5,0.05277681]
[1732848791326,4.82368297,3592.6,3592.5,0.05277681]
[1732848791729,7.82368297,3592.6,3592.5,0.05277681]
[1732848791965,8.24414756,3592.6,3592.5,0.05277681]
[1732848792166,12.24414756,3592.6,3592.5,0.05277681]
[1732848792399,12.62000322,3592.6,3592.5,0.05277681]
[1732848792580,11.50747373,3592.6,3592.5,0.05277681]
[1732848792746,2.7838,3592.2,3592.1,0.05042881]
[1732848793070,7.6572776,3592.2,3592.1,0.05042881]
[1732848793272,7.64315,3592.2,3592.1,0.05042881]
[1732848795685,11.64315,3592.2,3592.1,0.05042881]
[1732848798554,0.7845,3591.0,3590.3,0.57136167]
[1732848798753,0.7845,3591.0,3590.4,2.78516]
[1732848799191,3.56925,3591.0,3590.1,3.46896]
[1732848799391,3.56925,3591.0,3590.1,3.815856]
[1732848799594,3.56925,3591.0,3590.1,3.46896]
[1732848799761,0.7845,3591.0,3590.1,0.6836]
[1732848800087,0.7845,3591.0,3590.4,2.78519]
[1732848800597,0.7923,3591.3,3590.6,2.78498]
[1732848800889,3.7923,3591.3,3590.6,2.78498]
[1732848801397,0.25959642,3591.2,3590.8,2.78486]
[1732848801681,0.7923,3591.3,3590.8,2.78486]
[1732848801886,1.51744759,3591.3,3590.8,2.78486]
[1732848803195,1.51744759,3591.3,3590.6,2.78499]
[1732848803359,4.77704401,3591.3,3590.6,2.78499]
[1732848803561,0.25959642,3591.2,3590.5,2.78508]
[1732848803777,0.25959642,3591.2,3590.7,2.78495]
[1732848803978,4.51744759,3591.3,3590.7,2.78495]
[1732848804303,0.25939581,3591.2,3590.7,0.6836]
[1732848804510,0.25939581,3591.2,3591.1,3.46826]
[1732848804713,0.41493933,3591.9,3591.8,3.46771]
[1732848805000,0.67427641,3591.9,3591.8,2.78411]
[1732848805216,0.25933708,3591.9,3591.8,2.78411]
[1732848805505,0.25932111,3592.4,3591.9,2.78401]
[1732848805900,0.25932111,3592.5,3592.0,2.78395]
[1732848806077,0.72251449,3592.5,3592.0,2.78395]
[1732848806269,0.72251449,3592.5,3591.9,2.78401]
[1732848806470,0.9818356,3592.5,3592.0,2.78395]
[1732848806669,0.72251449,3592.5,3592.0,2.78395]
[1732848806901,0.51642494,3592.4,3592.0,2.78395]
[1732848808220,0.25932111,3592.5,3592.4,2.78365]
[1732848808365,0.25932111,3593.1,3592.6,2.78349]
[1732848808716,0.7829,3592.8,3592.1,2.78383]
[1732848808866,0.35803076,3592.7,3591.9,2.78404]
[1732848809203,3.400827,3592.7,3591.9,2.78404]
[1732848809405,0.25936624,3592.6,3592.0,2.78396]
[1732848809572,0.25936624,3592.6,3592.1,2.78387]
[1732848809767,0.35803076,3592.7,3592.1,2.78387]
[1732848809968,0.4183577,3592.6,3592.1,2.78387]
[1732848810611,0.4183577,3592.6,3591.7,3.46773]
[1732848810810,0.67772394,3592.6,3591.7,3.46773]
[1732848811105,0.7829,3592.5,3591.7,2.78413]
[1732848811335,1.04238448,3592.5,3591.7,5.56825]
[1732848811499,1.7451427,3592.5,3591.8,2.78408]
[1732848812232,0.25948448,3592.4,3591.6,2.78425]
[1732848812527,1.04238448,3592.3,3591.4,0.55021682]
[1732848812727,3.84038208,3592.2,3591.4,0.55021682]
[1732848812939,3.0,3592.0,3591.4,0.55021682]
[1732848813095,0.25948448,3591.9,3591.4,0.55021682]
[1732848813424,0.25948448,3591.9,3591.4,3.33460682]
[1732848813588,0.25948448,3592.0,3591.4,2.78439]
[1732848813922,0.25948448,3591.9,3591.5,2.78433]
[1732848814125,0.25948448,3592.0,3591.5,2.78433]
[1732848814327,0.25948448,3591.9,3591.5,2.78433]
[1732848815303,0.25948448,3591.8,3591.5,2.78433]
[1732848815829,0.25948448,3591.9,3591.5,2.78433]
[1732848816038,0.25948448,3591.8,3591.5,2.78433]
[1732848816192,0.25948448,3591.9,3591.6,2.78424]
[1732848816513,0.42148012,3592.0,3591.6,2.78424]
[1732848816514,0.25948448,3591.8,3591.6,2.78424]
[1732848816714,0.25948448,3591.9,3591.6,2.78424]
[1732848816885,0.25948448,3591.8,3591.6,2.78424]
[1732848817086,0.25948448,3591.9,3591.6,2.78424]
[1732848817313,0.25948448,3591.8,3591.6,2.78424]
[1732848817497,0.25948448,3591.9,3591.6,2.78424]
[1732848817714,0.25992932,3591.9,3591.8,2.78411]
[1732848817898,0.25992932,3592.0,3591.8,2.78411]